Cogmind - Beta 9.6 @@@ ROGUE MODE // 2020.09.07 @ 00:41:08 // Winter2019/RPGLIKE Player: Hermelin Result: Destroyed self with Light Fission Core chain reaction Performance ------------- Evolutions (3) 1500 Regions Visited (7) 1400 Robots Destroyed (114) 570 Value Destroyed (2821) 2821 Prototype IDs (33) 660 Alien Tech Used (0) 0 Bonus (845) 845 TOTAL SCORE: 7796 Bonus ------- High Alert Combat Kills 391 Follower Combat Kills 242 Aligned with FarCom 300 Friendly Fire -88 Cogmind --------- Core Integrity 0/700 Matter 290/300 Energy 522/580 System Corruption 0% Temperature Cool (29) Movement Treading (148) Location -7/Lower Caves Parts ------- > --- POWER (2) -------- Improved Deuterium Engine Improved Deuterium Engine > --- PROPULSION (4) --- Light Treads Advanced Treads Advanced Treads Advanced Treads > --- UTILITY (8) ------ Coolant Injector Small Battery Improved Signal Interpreter Improved Salvage Targeting Computer Improved Light Armor Plating Improved Light Armor Plating Hardlight Generator > --- WEAPON (3) ------- Light EM Pulse Cannon > --- INVENTORY (5) ---- Energy Filter Enhanced Autogun Makeshift Spear Peak State ------------ > --- POWER ------------ Improved Deuterium Engine Improved Deuterium Engine > --- PROPULSION ------- Light Treads Advanced Treads Advanced Treads Advanced Treads > --- UTILITY ---------- Coolant Injector Small Battery Improved Signal Interpreter Modified TNC 0b10 Alert Chip Improved Light Armor Plating Improved Light Armor Plating Hardlight Generator > --- WEAPON ----------- Light EM Pulse Cannon Firepult > --- INVENTORY -------- Improved Salvage Targeting Computer Energy Filter Enhanced Autogun Makeshift Spear [Rating: 69] Favorites ----------- Power Improved Deuterium Engine Engine Improved Deuterium Engine Power Core Light Nuclear Core Propulsion Advanced Treads Treads Advanced Treads Wheel Wheel Hover Unit Hover Unit Utility Small Battery Device Improved Heat Sink Storage Small Battery Processor 0b10 Alert Chip Protection Light Armor Plating Weapon Light EM Pulse Cannon Energy Gun EM Pulse Gun Energy Cannon Light EM Pulse Cannon Ballistic Gun Enhanced Autogun Slashing Weapon Master Tearclaws Build | -11 -10 -10 -10 -9 -8 -7 -7 ------- Run | Scr Mat Min Exi Min Mat Fac Low Slots Evolved 13 | 3 1 . 2 1 3 2 1 Power 1 | . . . . . 1 . . Propulsion 3 | 1 . . 1 . 1 . . Utility 7 | 1 1 . 1 1 1 1 1 Weapon 2 | 1 . . . . . 1 . Parts Attached 54 | 5 11 2 2 4 16 10 4 Power 9 | 1 1 1 . . 2 4 . Engine 8 | 1 . 1 . . 2 4 . Core 1 | . 1 . . . . . . Reactor . | . . . . . . . . Propulsion 14 | 2 3 . . . 9 . . Treads 8 | 1 . . . . 7 . . Leg . | . . . . . . . . Wheel 1 | 1 . . . . . . . Hover 5 | . 3 . . . 2 . . Flight . | . . . . . . . . Utility 21 | . 4 1 1 4 5 3 3 Device 8 | . 2 1 . 2 2 1 . Storage 2 | . 1 . . 1 . . . Processor 4 | . . . 1 . . 2 1 Hackware . | . . . . . . . . Protection 7 | . 1 . . 1 3 . 2 Artifact . | . . . . . . . . Weapon 10 | 2 3 . 1 . . 3 1 Energy Gun 2 | 2 . . . . . . . Energy Cannon 6 | . 3 . 1 . . 2 . Ballistic Gun 1 | . . . . . . 1 . Ballistic Cannon . | . . . . . . . . Launcher . | . . . . . . . . Special Weapon . | . . . . . . . . Impact Weapon . | . . . . . . . . Slashing Weapon 1 | . . . . . . . 1 Piercing Weapon . | . . . . . . . . Special Melee Weapon . | . . . . . . . . Unidentified Prototypes 1 | . . . . . . 1 . Parts Lost 2 | . . . . . . . 2 Power . | . . . . . . . . Propulsion . | . . . . . . . . Utility 2 | . . . . . . . 2 Weapon . | . . . . . . . . Highest Loss Streak 1 | . . . . . . . 1 Average Slot Usage (%) 92 | . 88 100 86 80 89 92 93 Engine 8 | . 3 5 10 9 9 12 11 Core 2 | . 9 6 . . . . . Treads 12 | . 2 . . . 23 25 23 Hover 12 | . 21 25 21 19 3 . . Device 13 | . 10 12 10 11 15 17 11 Storage 7 | . 4 12 10 9 7 6 5 Processor 6 | . . . 6 9 7 9 17 Protection 9 | . 6 12 10 9 12 6 9 Energy Gun 1 | . 12 . . . . . . Energy Cannon 14 | . 14 25 14 9 7 12 11 Naked Turns . | . . . . . . . . Heaviest Build 59 | 9 17 17 32 32 51 56 59 Greatest Support 91 | 15 17 17 17 23 91 91 91 Greatest Overweight (x) 1 | . . . 1 1 1 . . Average Overweight (x) . | . . . . 1 . . . Largest Inventory Capacity 5 | 2 2 4 4 4 5 5 5 Average Capacity 4 | 1 2 3 4 4 4 5 5 Most Carried 5 | . 2 4 4 4 5 5 5 Average Carried 3 | . 1 3 3 3 3 4 4 Final Capacity 5 | 2 2 4 4 4 5 5 5 Final Carried 5 | . 2 4 4 4 5 5 5 Class Distribution -------------------- 60% | Scavenger-Mutant 38% | Mutant Dominant Class ---------------- Mutant | -10/Materials Scavenger-Mutant | -10/Mines Scavenger-Mutant | -10/Exiles Scavenger-Mutant | -9/Mines Scavenger-Mutant | -8/Materials Mutant | -7/Factory Scavenger-Mutant | -7/Lower Caves Resources | -11 -10 -10 -10 -9 -8 -7 -7 ----------- Run | Scr Mat Min Exi Min Mat Fac Low Matter Collected 828 | 250 110 86 . 82 134 136 30 Remotely . | . . . . . . . . Salvage Created 4024 | . 725 932 . 56 960 1123 228 Parts 210 | . 62 35 . 9 56 40 8 Haulers Intercepted 4 | . 1 . . . . 3 . Recyclers Shooed 2 | . . . . . 2 . . Parts Field Recycled . | . . . . . . . . Retrieved Matter . | . . . . . . . . Parts Self-Destructed 5 | . . . . . . . 5 Prevented . | . . . . . . . . Kills | -11 -10 -10 -10 -9 -8 -7 -7 ------- Run | Scr Mat Min Exi Min Mat Fac Low Combat Hostiles Destroyed 83 | . 14 19 . 5 21 14 10 Guns 7 | . 7 . . . . . . Cannons 39 | . 7 17 . 2 2 9 2 AOE 23 | . . 2 . 2 15 1 3 Classes Destroyed 13 | . 8 2 . . . 2 1 Worker 7 | . 1 1 . . 2 3 . Builder 4 | . 1 . . . 3 . . Hauler 4 | . 1 . . . . 3 . Recycler 8 | . 2 5 . . 1 . . Operator 3 | . 2 . . . 1 . . Watcher 5 | . 3 . . . 1 1 . Swarmer 34 | . 3 7 . 5 6 6 7 Grunt 29 | . 11 6 . . 11 1 . Brawler 1 | . . . . . . 1 . Sentry 10 | . . 2 . . 4 4 . Hunter 2 | . . . . . . 2 . Master Thief 3 | . . . . . . . 3 Assembled 4 | . . 4 . . . . . Best Kill Streak 8 | . 6 5 . 3 8 6 5 Combat Bots Only 7 | . 5 5 . 3 7 5 5 Max Kills in Single Turn 4 | . 2 2 . 2 3 4 3 Gunslinging . | . . . . . . . . Exploded 3 | . . 1 . 1 3 1 2 Melee . | . . . . . . . . Uniques/NPCs Destroyed . | . . . . . . . . Combat | -11 -10 -10 -10 -9 -8 -7 -7 -------- Run | Scr Mat Min Exi Min Mat Fac Low Damage Taken 3458 | . 323 848 . 175 655 991 466 Core 2534 | . 266 609 . 130 463 731 335 Absorbed by Shields 426 | . . . . . 30 306 90 Redirected to Core 2142 | . 177 502 . 73 408 660 322 Core Remaining (%) 95 | 100 . . . 90 96 . . Volleys Fired 220 | . 49 62 . 3 24 58 24 Largest 2 | . 2 2 . 1 1 1 1 Hottest 250 | . 116 116 . 250 250 250 250 Shots Fired 330 | . 98 123 . 3 24 58 24 Gun 43 | . 43 . . . . . . Cannon 287 | . 55 123 . 3 24 58 24 Launcher . | . . . . . . . . Special . | . . . . . . . . Kinetic . | . . . . . . . . Thermal 152 | . 47 62 . 3 24 7 9 Explosive . | . . . . . . . . Electromagnetic 178 | . 51 61 . . . 51 15 Robot Hit Streak 16 | . 14 14 . 2 7 16 7 Robot Miss Streak 6 | . 4 3 . 4 4 5 6 Penetration Max . | . . . . . . . . Secondary Targets . | . . . . . . . . Shots Hit Robots 233 | . 55 87 . 3 21 46 21 Core Hits 169 | . 30 32 . 4 57 33 13 Critical Hits 2 | . . 2 . . . . . Critical Kills 1 | . . 1 . . . . . Critical Parts Destroyed 1 | . . 1 . . . . . Melee Attacks . | . . . . . . . . Impact . | . . . . . . . . Slashing . | . . . . . . . . Piercing . | . . . . . . . . Sneak Attacks . | . . . . . . . . Combat Hostiles . | . . . . . . . . Follow-up Attacks . | . . . . . . . . Damage Inflicted 7625 | . 1136 1902 . 220 1802 1590 975 Guns 410 | . 410 . . . . . . Cannons 4706 | . 600 1764 . 97 541 1174 530 Explosions 2493 | . 126 138 . 107 1261 416 445 Melee . | . . . . . . . . Ramming 16 | . . . . 16 . . . Kinetic . | . . . . . . . . Thermal 4701 | . 521 803 . 204 1802 645 726 Explosive . | . . . . . . . . Electromagnetic 2908 | . 615 1099 . . . 945 249 Impact . | . . . . . . . . Slashing . | . . . . . . . . Piercing . | . . . . . . . . Highest Corruption 3 | . 3 3 3 3 . . . Average Corruption 2 | . 2 3 3 3 . . . Corruption Purged . | . . . . . . . . Effects 30 | . . 19 7 4 . . . Message Errors 5 | . . 2 2 1 . . . Matter Fused 12 | . . 8 2 2 . . . Heat Flow Errors 1 | . . 1 . . . . . Energy Discharges 2 | . . . 2 . . . . Data Loss (minor) 6 | . . 4 1 1 . . . Targeting Errors 3 | . . 3 . . . . . Weapon Failures 1 | . . 1 . . . . . Overload Shots . | . . . . . . . . Overflow Damage 115 | . 8 78 . . 3 3 23 Projectiles 112 | . 8 78 . . . 3 23 Explosions 3 | . . . . . 3 . . Melee . | . . . . . . . . Knockbacks . | . . . . . . . . Impact . | . . . . . . . . Kinetic . | . . . . . . . . Secondary . | . . . . . . . . Self-Inflicted Damage 417 | . 8 76 . 38 128 20 147 Shots 22 | . 1 3 . 3 10 1 4 Rammed 1 | . . . . 1 . . . Targets Rammed 1 | . . . . 1 . . . Kicked . | . . . . . . . . Crushed . | . . . . . . . . Highest Temperature 356 | . 120 250 . 210 356 215 280 Average Temperature 77 | . 41 29 . 106 105 97 129 Received Heat Transfer 727 | . 135 183 . . 240 169 . Siege Activations . | . . . . . . . . Robots Corrupted 2 | . . 1 . . . 1 . Combat Hostiles 1 | . . . . . . 1 . Parts Fried 12 | . 2 3 . . . 6 1 Impact Corruptions . | . . . . . . . . Robots Melted 13 | . . . . 1 4 3 5 Combat Hostiles 13 | . . . . 1 4 3 5 Parts Melted 65 | . 1 1 . 1 16 19 27 Heat Transferred 19600 | . 964 1556 . 960 9600 3090 3430 Parts Sabotaged . | . . . . . . . . Parts Stolen 4 | . . . . . . . 4 Parts Stripped . | . . . . . . . . Power Chain Reactions 9 | . 3 3 . . . 1 2 Missiles Intercepted . | . . . . . . . . Alert | -11 -10 -10 -10 -9 -8 -7 -7 ------- Run | Scr Mat Min Exi Min Mat Fac Low Peak Influence 804 | . 417 399 . 163 804 729 . Average Influence 328 | . 222 260 . 99 418 496 . Maximum Alert Level 3 | . 2 1 . . 3 3 . Low Security (%) 25 | 100 38 9 . 100 29 . . Level 1 39 | . 46 90 . . 17 13 . Level 2 33 | . 14 . . . 41 85 . Level 3 2 | . . . . . 12 1 . Level 4 . | . . . . . . . . Level 5 . | . . . . . . . . High Security . | . . . . . . . . Max Security . | . . . . . . . . Squads Dispatched 14 | . 4 . . . 6 4 . Investigation 3 | . 2 . . . 1 . . Extermination 1 | . . . . . . 1 . Reinforcement 10 | . 2 . . . 5 3 . Assault . | . . . . . . . . Garrison . | . . . . . . . . Intercept . | . . . . . . . . Construction Impeded 3 | . . . . . 3 . . Haulers Reinforced 2 | . . . . . . 2 . Stealth | -11 -10 -10 -10 -9 -8 -7 -7 --------- Run | Scr Mat Min Exi Min Mat Fac Low Distress Signals 4 | . . . . . 4 . . Communications Jammed . | . . . . . . . . Distress Signals . | . . . . . . . . Times Spotted 138 | . 24 31 . 6 39 25 13 Peak Tracking Total 11 | . 4 11 . 3 8 5 4 Tactical Retreats 12 | . . 4 . . 6 2 . Traps | -11 -10 -10 -10 -9 -8 -7 -7 ------- Run | Scr Mat Min Exi Min Mat Fac Low Traps Triggered 4 | . 2 . . . 1 1 . Indirectly . | . . . . . . . . Trap Hack Attempts . | . . . . . . . . Triggered . | . . . . . . . . Disarmed . | . . . . . . . . Reprogrammed . | . . . . . . . . Reused . | . . . . . . . . Traps Extracted . | . . . . . . . . Installed 3 | . . . . 3 . . . Triggered . | . . . . . . . . Machines | -11 -10 -10 -10 -9 -8 -7 -7 ---------- Run | Scr Mat Min Exi Min Mat Fac Low Machines Disabled 9 | . 2 1 . 1 4 1 . Max in Single Turn 1 | . 1 1 . 1 1 1 . Machines Sabotaged . | . . . . . . . . Garrisons Compromised . | . . . . . . . . Overloaded Fab Kills . | . . . . . . . . Fab Network Shutdowns . | . . . . . . . . Hacking | -11 -10 -10 -10 -9 -8 -7 -7 --------- Run | Scr Mat Min Exi Min Mat Fac Low Machines Accessed 16 | . 7 1 2 . 2 4 . Terminals 10 | . 6 1 . . . 3 . Fabricators . | . . . . . . . . Repair Stations 1 | . . . . . 1 . . Recycling Units 2 | . 1 . . . . 1 . Scanalyzers 1 | . . . . . 1 . . Garrison Access . | . . . . . . . . Total Hacks 56 | . 28 4 2 . 5 17 . Successful 38 | . 19 1 2 . 3 13 . Failed 17 | . 8 3 . . 2 4 . Catastrophic . | . . . . . . . . Database Lockouts 1 | . 1 . . . . . . Manual 31 | . 14 5 1 . . 11 . Terminals 44 | . 26 4 . . . 14 . Fabricators . | . . . . . . . . Repair Stations 2 | . . . . . 2 . . Recycling Units 5 | . 2 . . . . 3 . Scanalyzers 3 | . . . . . 3 . . Garrison Access . | . . . . . . . . Terminal Hacks 19 | . 11 1 2 . . 5 . Record 1 | . . . 1 . . . . Robot Analysis 3 | . 2 1 . . . . . Prototype ID Bank 5 | . 3 . . . . 2 . Branch Access Points 1 | . 1 . . . . . . Terminal Index 3 | . 2 . . . . 1 . Recall Reinforcements 1 | . . . . . . 1 . Hauler Manifests 2 | . 2 . . . . . . Zone Layout 2 | . 1 . . . . 1 . EX-Prototype ID Bank 1 | . . . 1 . . . . Fabricator Hacks . | . . . . . . . . Repair Station Hacks . | . . . . . . . . Recycling Unit Hacks 2 | . 1 . . . . 1 . Report Inventory 2 | . 1 . . . . 1 . Scanalyzer 3 | . . . . . 3 . . Insert Component 2 | . . . . . 2 . . Analyze 1 | . . . . . 1 . . Garrison Access Hacks . | . . . . . . . . Unauthorized Hacks 14 | . 7 . . . . 7 . Terminals 12 | . 6 . . . . 6 . Track 4 | . 1 . . . . 3 . Botnet 7 | . 4 . . . . 3 . Operators 1 | . 1 . . . . . . Fabricators . | . . . . . . . . Repair Stations . | . . . . . . . . Recycling Units 2 | . 1 . . . . 1 . Reject 1 | . . . . . . 1 . Tunnel 1 | . 1 . . . . . . Scanalyzers . | . . . . . . . . Garrison Access . | . . . . . . . . Data Cores Recovered 1 | . 1 . . . . . . Used 1 | . 1 . . . . . . Hacking Detections 11 | . 4 1 . . 2 4 . Full Trace Events 1 | . 1 . . . . . . Feedback Events . | . . . . . . . . Feedback Blocked . | . . . . . . . . Robot Schematics Acquired . | . . . . . . . . Robots Built . | . . . . . . . . Matter . | . . . . . . . . Time . | . . . . . . . . Total Robot Build Rating . | . . . . . . . . Part Schematics Acquired 1 | . . . . . 1 . . Parts Built . | . . . . . . . . Matter . | . . . . . . . . Time . | . . . . . . . . Total Part Build Rating . | . . . . . . . . Parts Repaired . | . . . . . . . . Time . | . . . . . . . . Parts Recycled . | . . . . . . . . Recycled Matter . | . . . . . . . . Retrieved Matter . | . . . . . . . . Retrieved Components . | . . . . . . . . Parts Scanalyzed 1 | . . . . . 1 . . Part Schematics Acquired 1 | . . . . . 1 . . Parts Damaged . | . . . . . . . . Bothacking | -11 -10 -10 -10 -9 -8 -7 -7 ------------ Run | Scr Mat Min Exi Min Mat Fac Low Used RIF Installer . | . . . . . . . . Robots Hacked . | . . . . . . . . Non-combat . | . . . . . . . . Combat . | . . . . . . . . Robot Hacks Applied . | . . . . . . . . Relay Couplers Released . | . . . . . . . . Robots Rewired 1 | . . . . . . 1 . Allies Hacked . | . . . . . . . . Hacks Repelled . | . . . . . . . . Allies | -11 -10 -10 -10 -9 -8 -7 -7 -------- Run | Scr Mat Min Exi Min Mat Fac Low Total Allies 4 | . . 1 . 2 . 1 . Largest Group 2 | . . 1 1 2 2 1 . Highest-Rated Group 39 | . . 31 31 39 39 16 . Highest-Rated Ally 31 | . . 31 31 31 31 16 . Total Orders . | . . . . . . . . Ally Attacks 27 | . . . . 1 18 8 . Total Damage 419 | . . . . 22 299 98 . Kills 8 | . . . . 1 6 1 . Allies Corrupted . | . . . . . . . . Allies Melted . | . . . . . . . . Intel | -11 -10 -10 -10 -9 -8 -7 -7 ------- Run | Scr Mat Min Exi Min Mat Fac Low Robot Analysis Total 3 | . 2 1 . . . . . Derelict Logs Recovered 3 | . . 1 . 1 . . 1 Drone Launches . | . . . . . . . . Drone Recoveries . | . . . . . . . . Exploration | -11 -10 -10 -10 -9 -8 -7 -7 ------------- Run | Scr Mat Min Exi Min Mat Fac Low Turns Passed 4038 | 42 512 927 320 325 578 922 412 Spaces Moved 3126 | 43 487 1046 301 231 300 481 237 Core 1 | 1 . . . . . . . Treads 963 | . . . . . 245 481 237 Legs . | . . . . . . . . Wheels 133 | 42 91 . . . . . . Hover 2029 | . 396 1046 301 231 55 . . Flight . | . . . . . . . . Fastest Speed 50 | 50 56 56 56 116 116 148 148 Average Speed 93 | 79 60 56 79 116 142 148 148 Slowest Speed 152 | 80 80 56 116 116 152 148 148 Overloaded Moves . | . . . . . . . . Propulsion Burnouts . | . . . . . . . . Robots Hopped . | . . . . . . . . Cave-ins Triggered . | . . . . . . . . Exploration Rate (%) 45 | 4 88 98 68 27 29 15 38 Regions Visited 7 Branch Regions 4 Pre-discovered Areas 3 | . 1 1 1 . . . . Known Exits Taken 2 | . 1 . . . . 1 . Unknown Exits Taken 5 | 1 . 1 1 1 1 . . Scrap Searched 4 | . . 1 . 2 . . 1 Spaces Dug . | . . . . . . . . Terrain Destroyed 195 | . 8 28 . 22 118 . 19 Melee . | . . . . . . . . Projectile 12 | . . . . 2 10 . . AOE 183 | . 8 28 . 20 108 . 19 Actions | -11 -10 -10 -10 -9 -8 -7 -7 --------- Run | Scr Mat Min Exi Min Mat Fac Low Total 3925 | 48 604 1265 382 284 432 634 276 Wait 331 | 1 24 102 71 36 43 47 7 Move 3119 | 42 486 1045 300 230 299 480 237 Hop . | . . . . . . . . Pick Up 31 | . 5 5 3 2 9 5 2 Fast Attach 26 | 5 8 1 1 . 7 4 . Attach 11 | . 1 . 1 1 3 2 3 Detach 1 | . . . . . 1 . . Swap 17 | . 2 1 . 3 6 4 1 Drop 46 | . 10 5 4 1 16 9 1 Fire 220 | . 49 62 . 3 24 58 24 Melee . | . . . . . . . . Ram 1 | . . . . 1 . . . Kick . | . . . . . . . . Crush . | . . . . . . . . Escape Stasis . | . . . . . . . . Rewire 2 | . . . . . . 2 . Trap 3 | . . . . 3 . . . Miscellaneous 117 | . 19 44 2 4 24 23 1 Route ------- -11/Scrapyard -10/Materials (discovered 4 exits: [*Mat x3] / *Min) -10/Mines (discovered 3 exits: [*Mat x2] / *Exi) -10/Exiles (discovered 2 exits: [*Min x2]) -9/Mines -8/Materials -7/Factory -7/Lower Caves History --------- Turn | Location | Event 7 | -11/Scrapyard | Upgraded with Propulsion slot (x1) 7 | -11/Scrapyard | Upgraded with Utility slot (x1) 7 | -11/Scrapyard | Upgraded with Weapon slot (x1) 16 | -11/Scrapyard | Discovered new exit (range 16) 43 | -11/Scrapyard | Entered Materials 180 | -10/Materials | Discovered new exit (range 7) 313 | -10/Materials | Build established: Mutant 334 | -10/Materials | Discovered new exit (range 14) 338 | -10/Materials | Central database locked down 354 | -10/Materials | Reached level 2 368 | -10/Materials | Identified exit to Mines 381 | -10/Materials | Upgraded with Utility slot (x1) 415 | -10/Materials | Discovered new exit (range 17) 522 | -10/Materials | Discovered new exit (range 7) 555 | -10/Materials | Entered Mines 573 | -10/Mines | Received a Rocket Launcher from a helpful Derelict 644 | -10/Mines | Reached level 3 677 | -10/Mines | Build established: Scavenger-Mutant 844 | -10/Mines | Assembled infested the area 1003 | -10/Mines | Discovered new exit (range 8) 1084 | -10/Mines | Learned location of Storage (-8) 1100 | -10/Mines | Deemed a non-threat by the Exiles lab entrance 1100 | -10/Mines | Discovered new exit (range 5) 1108 | -10/Mines | Discovered new exit (range 7) 1224 | -10/Mines | Reached level 4 1375 | -10/Mines | Received a Mining Laser from a helpful Derelict 1482 | -10/Mines | Entered Exiles 1482 | -10/Exiles | Accompanied by 1 ally 1490 | -10/Exiles | Discovered new exit (range 15) 1497 | -10/Exiles | Met 8R-AWN 1505 | -10/Exiles | Met EX-HEX 1521 | -10/Exiles | Met EX-BIN 1526 | -10/Exiles | Met EX-DEC 1544 | -10/Exiles | Learned location of Zion (-7) 1565 | -10/Exiles | Aligned with FarCom system 1565 | -10/Exiles | Given EX-Vault access code 1581 | -10/Exiles | Opened EX-Vault 1585 | -10/Exiles | Found Firepult 1593 | -10/Exiles | Found Modified TNC 1595 | -10/Exiles | Upgraded with Propulsion slot (x1) 1595 | -10/Exiles | Upgraded with Utility slot (x1) 1601 | -10/Exiles | Found 0b10 Alert Chip 1638 | -10/Exiles | Warned to stay clear of 0b10 Research branches 1728 | -10/Exiles | Discovered new exit (range 10) 1802 | -10/Exiles | Stole three prototypes: 0b10 Alert Chip, Firepult, Modified TNC 1802 | -10/Exiles | Entered Mines 1830 | -9/Mines | Met a Derelict bent on vengeance 1981 | -9/Mines | Found a hidden stash of uninstalled traps 2054 | -9/Mines | Reached level 5 2080 | -9/Mines | Upgraded with Utility slot (x1) 2112 | -9/Mines | Discovered new exit (range 10) 2127 | -9/Mines | Entered Materials 2127 | -8/Materials | Accompanied by 2 allies 2129 | -8/Materials | Reached level 6 2132 | -8/Materials | Led the pair of lost Derelicts to an unsafe place 2132 | -8/Materials | Upgraded with Propulsion slot (x1) 2312 | -8/Materials | Reached level 7 2313 | -8/Materials | Upgraded with Utility slot (x1) 2483 | -8/Materials | Destroyed 7 combat bots 2511 | -8/Materials | Reached level 8 2513 | -8/Materials | Upgraded with Power slot (x1) 2514 | -8/Materials | Core integrity fell below 50% 2681 | -8/Materials | Discovered new exit (range 17) 2705 | -8/Materials | Entered Factory 2707 | -7/Factory | FarCom data flow suspended 2707 | -7/Factory | Reached level 9 2708 | -7/Factory | Upgraded with Weapon slot (x1) 2770 | -7/Factory | Build established: Mutant 2870 | -7/Factory | Reached level 10 3411 | -7/Factory | Discovered new exit (range 5) 3413 | -7/Factory | Reached level 11 3414 | -7/Factory | Upgraded with Utility slot (x1) 3418 | -7/Factory | Identified exit to Lower Caves 3474 | -7/Factory | Core integrity fell below 50% 3627 | -7/Factory | Entered Lower Caves 3641 | -7/Lower Caves | Learned Factory emergency access door positions 3740 | -7/Lower Caves | Reached level 12 3742 | -7/Lower Caves | Upgraded with Utility slot (x1) 3746 | -7/Lower Caves | Spotted 1I-WW0(f) 3747 | -7/Lower Caves | Encountered a Master Thief 3747 | -7/Lower Caves | Destroyed 1I-WW0(f) 3755 | -7/Lower Caves | Spotted SA-0S3(f) 3756 | -7/Lower Caves | Encountered a Master Thief 3772 | -7/Lower Caves | Destroyed SA-0S3(f) 3899 | -7/Lower Caves | Core integrity fell below 20% 4010 | -7/Lower Caves | Spotted LJ-OF7(f) 4011 | -7/Lower Caves | Encountered a Master Thief 4013 | -7/Lower Caves | Spotted XN-WZB(f) 4014 | -7/Lower Caves | Encountered a Master Thief 4015 | -7/Lower Caves | Firepult stolen by Master Thief 4016 | -7/Lower Caves | Destroyed LJ-OF7(f) 4030 | -7/Lower Caves | Spotted 8T-UQX(f) 4031 | -7/Lower Caves | Encountered a Master Thief 4032 | -7/Lower Caves | Spotted 4X-HDV(f) 4033 | -7/Lower Caves | Encountered a Master Thief 4034 | -7/Lower Caves | Master Tearclaws stolen by Master Thief 4039 | -7/Lower Caves | Destroyed self with Light Fission Core chain reaction Last Messages --------------- 03907_ Autogun melted. 03907_ VTOL Module melted. 03907_ Unknown Power Core melted. 03910_ S-27 Virus heat damages VTOL Module. 03911_ S-27 Virus destroyed. 03923_ VTOL Module fries itself beyond repair. 03925_ Unknown Power Core fries itself beyond repair. 04013_ Melted Nuclear Pulse Thruster. 04015_ LJ-OF7(f) overheating. 04015_ Firepult ripped off. 04015_ Chain reaction triggered in Lgt. Fission Core. 04015_ Melted Nuclear Pulse Thruster. 04016_ LJ-OF7(f) heat short circuits Broken Nanoactuators. 04016_ LJ-OF7(f) critical meltdown. 04016_ Mak. Cloaking Device melted. 04016_ Nuclear Pulse Thruster melted. 04016_ Lgt. Fission Core melted. 04033_ Modified TNC ripped off. 04034_ Master Tearclaws ripped off. 04039_ Chain reaction triggered in Lgt. Fission Core. Map ----- +----------------------------------------------------+ | ????????????????????????????????? | | ????????????????????????????????? ## ?# | | ????????????????????????????????????#??####### | | ?????????????????????????????????????????#### | | ?????????????????????????????????????????# | | ?????????????????????????????????????????# # | | ???????????????????????????????????######## ## | | ????????????????????????????????#### ### ##? | | ???????????????????????????????## #?? | | ???????????????????????????????# ##?? | | ???????????????????????????????# ### ##??? | | ??????????????????????????????## #?## ###???? | | ????????????????????????????### #### #?????? | | ???????????????????????????## ## #?????? | | ???????????????????????????# #?????? | | ???????????????????????????# #?????? | | ???????????????????????????#### ### ##?????? | | ??????????????????????????????###?## #??????? | | ???????????????????????????????????# ##??????? | | ???????????????????????????????????# #???????? | | ???????????????????????????????????# % ##??????? | | ???????????????????????????????????# ##?????? | | ???????????????????#######???????### ### # | | ???????????????????#;;;;;###?????# | | ???????????????#####; ;;#?### ### | | ??????????????## ## %@ #?# #??## | | ??????????????# /;f ### #???? | | ??????????????## ;;;;;#; ## ##????? # | | ???????????????############; #??????? # | | ???????????????????????###### ####???##?? | | ????????????????######## ### ### #??? | | ????????????????# ## #?????? | | ?????????????????# ##?????? | | ?????????????????##### ####??????? | | ?????????????????????## ##?????????? | | ??????????????????????## ##??????????? | | ???????????????????????## ####???????????? | | ????????????????????????## ##??????????????? | | ?????????????????????????# ######???????????????? | | ?????????????????????????# #????????????????????? | | ?????????????????????????# ????????????????????? | | ????????????????????????? ???????????????????? | | ????????????????????????? ??????????????????? | | ????????????????????????## ?????????????????? | | ?????????????????????????# ### #????????????????? | | ?????????????????????????## #?? #????????????????? | | ??????????????????????????###???#????????????????? | | ?????????????????????????????????????????????????? | | ?????????????????????????????????????????????????? | | ?????????????????????????????????????????????????? | +----------------------------------------------------+ Best States ------------- Heat Dissipation 71 Coolant Potential 65 Energy Generation 27 Energy Capacity 580 Matter Stores 300 Matter Capacity 300 Sight Range 17 Robot Scan Range 12 Terrain Scan Density 10 Additional Mass Support 6 Armor Coverage 300 Evasion (%) 53 Recoil Reduction 4 Salvage Targeting 2 Offensive Hacking 5 Defensive Hacking 5 Item Schematics ----------------- Adv. Treads | -8/Materials | Scanalyzed Robot Schematics ------------------ None Fabricated ------------ Nothing Alien Tech Used ----------------- None Achievements -------------- None Challenges ------------ None RPGLIKE | -11 -10 -10 -10 -9 -8 -7 -7 --------- Run | Scr Mat Min Exi Min Mat Fac Low Levels Raised 11 | . 1 2 . 1 3 3 1 XP Earned 20075 | 3000 2190 2375 350 1318 5450 4065 1327 XP Spent 19295 | 2970 800 1750 1900 1490 4550 3535 2300 Upgrades 33 | 11 1 2 2 2 4 10 1 Power Slot 1 | . . . . . 1 . . Propulsion Slot 3 | 1 . . 1 . 1 . . Utility Slot 7 | 1 1 . 1 1 1 1 1 Weapon Slot 2 | 1 . . . . . 1 . Core Integrity 2 | . . . . . . 2 . Heat Dissipation 3 | 2 . . . 1 . . . Mass Support 1 | 1 . . . . . . . Inventory Capacity 5 | 2 . 2 . . 1 . . Sight Range 1 | 1 . . . . . . . Sensor Range 6 | . . . . . . 6 . Hack Attack % 1 | 1 . . . . . . . Hack Defense % 1 | 1 . . . . . . . Protomatter Created 984 | . 256 279 . 26 315 63 45 Integrity Restored 2265 | . 332 836 11 75 509 478 24 Core 1803 | . 266 601 8 75 494 335 24 Parts 462 | . 66 235 3 . 15 143 . Protomatter Decayed 186 | . 88 24 3 59 . 12 . Game ------ Seed BarrageSkeletonCompactor Manual? 0 Play Time 00:58:30 Cumulative 198.1 hours Start 2020.09.06 @ 22:58:39 End 2020.09.07 @ 00:41:08 Sessions 1 Manual Loads 0 Difficulty Rogue Special Mode Winter2019/RPGLIKE Game No. 81 Rogue 81 Adventurer 0 Explorer 0 Win Type - Total 3 Types 2/0/0/1/0/0/0 Lore% 80 Gallery% 77 Achievement% 68 Wizard Run 0 Options --------- ASCII 0 Keyboard 0 Movement Numpad Keybinds 0 Fullscreen 1 Font 18/SmallcapsGlow Map View 76x50 Tactical HUD 1 Map Filters NONE Filters NONE Steam 1 RUN: 35b28a08-f959-4055-830b-0cf1863badfc